Cogmind - Beta 17 @@@ ROGUE MODE // 2026.08.02 @ 21:36:08 Player: KURIIRI Result: Self-destructed Performance ------------- Evolutions (8) 4000 Regions Visited (21) 4200 Robots Destroyed (365) 1825 Value Destroyed (21648) 21648 Prototype IDs (50) 1000 Alien Tech Used (2) 400 Bonus (30879) 30879 TOTAL SCORE: 63952 Bonus ------- Triggered High Security 500 High Alert Combat Kills 3695 Follower Combat Kills 5689 Prayed to X0-1V1 5000 Major X0-1V1 Interference 8850 Entered Garrisons 1200 Used RIF Installer 3000 Network Hubs Disabled 400 Built Enhanced Grunts 300 A7 Reached Mainframe 300 Met R17 at Research 2000 Scanned by Researcher 500 Friendly Fire -555 Cogmind --------- Core Integrity 1323/1350 Matter 900/900 Energy 43/1668 System Corruption 2% Temperature Cool (0) Movement Treading (128) Ox1 Location -2/Research Parts ------- > --- POWER (2) -------- Multi-Quantum Reactor > --- PROPULSION (5) --- Treaded Siege-Combat Exoskeleton > --- UTILITY (11) ----- Armored Scrap Engine High-capacity Storage Unit Advanced Weapon Cycler Advanced Phase Shifter Advanced Thermal Defense Suite Remote Force Field Relay Coupler [NC] (57) Relay Coupler [Grunt] (2) Relay Coupler [Sentry] (38) Relay Coupler [Hunter] (13) > --- WEAPON (5) ------- Enhanced Hardcell Cannon Advanced Remote Datajack Hvy. Thermic Hardcell Construct/C > --- INVENTORY (20) --- Heavy Siege Treads Experimental Target Analyzer Advanced Transmission Jammer Advanced Force Field Relay Coupler [NC] (40) Relay Coupler [NC] (40) Relay Coupler [Duelist] (40) Relay Coupler [Sentry] (40) Relay Coupler [Sentry] (23) Relay Coupler [Proto] (16) Relay Coupler [Proto] (16) Relay Coupler [Proto] (16) Relay Coupler [Proto] (16) Subatomic Replicator Enhanced Hardcell Cannon Enhanced Hardcell Cannon Micro-nuke Launcher Advanced Remote Datajack Advanced Remote Datajack Peak State ------------ > --- POWER ------------ Multi-Quantum Reactor > --- PROPULSION ------- Treaded Siege-Combat Exoskeleton > --- UTILITY ---------- Armored Scrap Engine High-capacity Storage Unit Advanced Weapon Cycler Advanced Phase Shifter Advanced Thermal Defense Suite Remote Force Field Relay Coupler [NC] Relay Coupler [Grunt] Relay Coupler [Sentry] Relay Coupler [Hunter] > --- WEAPON ----------- Enhanced Hardcell Cannon Advanced Remote Datajack Advanced Remote Datajack Hvy. Thermic Hardcell Construct/C > --- INVENTORY -------- Heavy Siege Treads Advanced Transmission Jammer Advanced Force Field Relay Coupler [NC] Relay Coupler [NC] Relay Coupler [Duelist] Relay Coupler [Sentry] Relay Coupler [Sentry] Relay Coupler [Hunter] Relay Coupler [Proto] Relay Coupler [Proto] Relay Coupler [Proto] Relay Coupler [Proto] Subatomic Replicator Enhanced Hardcell Cannon Micro-nuke Launcher [Rating: 173] Favorites ----------- Power Constructs Engine Ion Engine Power Core Light Nuclear Core Reactor Constructs Propulsion Constructs Treads Constructs Leg Aluminum Leg Wheel Wheel Flight Unit Field Propulsion Drive Utility High-capacity Storage Unit Device Armored Scrap Engine Storage High-capacity Storage Unit Processor Advanced Targeting Computer Hackware Relay Coupler [Grunt] Protection Powered Armor Weapon Constructs Energy Gun Particle Gun Energy Cannon Advanced Beam Cannon Ballistic Gun Assault Rifle Ballistic Cannon Constructs Launcher Rocket Launcher Special Weapon Improved Remote Datajack Impact Weapon Power Maul Piercing Weapon Lance Build | -11 -10 -9 -9 -9 -9 -7 -7 -6 -6 -5 -5 -5 -5 -5 -5 -4 -4 -3 -3 -3 -2 ------- Run | Yrd Mat Mat Sto Gar Rec Fac Gar Fac Gar Fac Ext Cet Arc Hub Gar Fac Gar Res Qua Gar Res Slots Evolved 16 | . . 2 . . . 4 . 2 . 2 . . . . . 2 . 2 . . 2 Power . | . . . . . . . . . . . . . . . . . . . . . . Propulsion 4 | . . 1 . . . 1 . . . . . . . . . 1 . . . . 1 Utility 9 | . . . . . . 2 . 2 . 2 . . . . . 1 . 1 . . 1 Weapon 3 | . . 1 . . . 1 . . . . . . . . . . . 1 . . . Parts Attached 151 | 4 9 13 5 9 3 4 7 12 9 9 3 3 6 3 3 10 8 10 8 9 4 Power 6 | 1 1 1 1 2 . . . . . . . . . . . . . . . . . Engine 5 | 1 1 1 1 1 . . . . . . . . . . . . . . . . . Core 1 | . . . . 1 . . . . . . . . . . . . . . . . . Reactor . | . . . . . . . . . . . . . . . . . . . . . . Propulsion 13 | 2 2 3 1 2 1 . . . . . . . . . . . . 2 . . . Treads 12 | 2 1 3 1 2 1 . . . . . . . . . . . . 2 . . . Leg . | . . . . . . . . . . . . . . . . . . . . . . Wheel 1 | . 1 . . . . . . . . . . . . . . . . . . . . Hover . | . . . . . . . . . . . . . . . . . . . . . . Flight . | . . . . . . . . . . . . . . . . . . . . . . Utility 95 | 1 4 3 2 2 1 4 4 9 7 7 1 1 6 3 2 8 7 6 7 7 3 Device 47 | 1 1 2 1 2 1 3 1 3 3 4 . . 4 1 1 2 5 1 6 3 2 Storage 4 | . 2 . . . . . 1 . . . . . . . . . . 1 . . . Processor 3 | . . 1 . . . . . . . 1 . . . . . . . 1 . . . Hackware 36 | . . . 1 . . 1 2 5 4 1 1 . 2 1 1 6 2 3 1 4 1 Protection 5 | . 1 . . . . . . 1 . 1 . 1 . 1 . . . . . . . Artifact . | . . . . . . . . . . . . . . . . . . . . . . Weapon 37 | . 2 6 1 3 1 . 3 3 2 2 2 2 . . 1 2 1 2 1 2 1 Energy Gun 7 | . 2 1 . . . . 1 1 1 . . 1 . . . . . . . . . Energy Cannon 5 | . . . 1 3 . . . . . 1 . . . . . . . . . . . Ballistic Gun 5 | . . 1 . . . . 1 1 . . . 1 . . . 1 . . . . . Ballistic Cannon 5 | . . 2 . . . . . . 1 . . . . . . . . 1 . . 1 Launcher 4 | . . 2 . . . . . . . . 1 . . . . . . . . 1 . Special Weapon 9 | . . . . . . . 1 1 . 1 1 . . . 1 1 1 1 1 . . Impact Weapon 2 | . . . . . 1 . . . . . . . . . . . . . . 1 . Slashing Weapon . | . . . . . . . . . . . . . . . . . . . . . . Piercing Weapon . | . . . . . . . . . . . . . . . . . . . . . . Special Melee Weapon . | . . . . . . . . . . . . . . . . . . . . . . Unidentified Prototypes 17 | . 1 . 2 . 1 . . 3 . 1 . 3 . . . . 1 1 3 1 . Corrupted Parts 2 | . . . . . . . . . . . . 2 . . . . . . . . . System Corruption 20 | . . . . . . . . . . . . 20 . . . . . . . . . Parts Lost 20 | . . 1 . 5 4 . 1 . 1 1 . . . . . 1 3 . 1 1 1 Power 4 | . . 1 . 1 . . . . 1 . . . . . . . . . . . 1 Propulsion 3 | . . . . 2 1 . . . . . . . . . . . . . . . . Utility 8 | . . . . 1 1 . 1 . . . . . . . . 1 2 . 1 1 . Weapon 5 | . . . . 1 2 . . . . 1 . . . . . . 1 . . . . Highest Loss Streak 4 | . . 1 . 2 4 . 1 . 1 1 . . . . . 1 2 . 1 1 1 To Critical Strikes . | . . . . . . . . . . . . . . . . . . . . . . Average Backups 16 | 5 11 14 17 16 10 5 10 19 19 18 17 19 18 15 17 18 19 18 15 17 17 Power 1 | 1 1 . 1 2 . . . 1 . 1 2 2 2 2 2 2 1 1 1 . . Propulsion 1 | 3 1 3 4 2 1 . . . . 1 1 1 1 1 1 . . 1 2 1 1 Utility 9 | . 5 6 5 5 3 1 6 12 16 13 11 12 11 8 8 8 10 11 7 11 12 Weapon 3 | 1 3 4 5 5 2 3 3 5 1 1 2 2 3 3 4 5 4 3 3 2 2 Tool/Special . | . . . . . . . . . . . . . . . . . . . . . . Unused Backups 102 | . 4 3 3 . 11 . 8 4 12 6 1 1 2 . 4 2 8 3 4 8 18 Power 7 | . 1 . . . 2 . 1 . 1 . . . . . . . 1 . . 1 . Propulsion 8 | . . . . . 2 . . . 1 . . 1 . . . 2 . . . 1 1 Utility 60 | . 3 3 . . 7 . 4 2 8 6 1 . 2 . 2 . 2 1 2 5 12 Weapon 23 | . . . 3 . . . 3 2 2 . . . . . 2 . 4 2 1 1 3 Tool/Special 4 | . . . . . . . . . . . . . . . . . 1 . 1 . 2 Average Slot Usage (%) 67 | . 99 93 88 96 74 46 52 58 54 62 63 64 63 64 64 61 62 65 62 59 65 Engine 3 | . 14 10 11 8 3 . 3 . 4 . . 4 . . . . . . . . . Core 1 | . . . . 2 6 7 . . . . . . 5 5 5 1 . . . . . Reactor 2 | . . . . . . . 2 5 2 5 4 . . . . 3 5 4 4 4 4 Treads 8 | . 26 32 33 32 19 . 2 4 5 . . 1 5 5 1 3 . 3 . 3 2 Device 14 | . 4 11 8 10 9 14 11 15 13 22 17 17 15 6 15 12 16 14 20 21 21 Storage 6 | . 14 11 11 11 5 . 4 6 6 5 5 5 5 5 5 5 5 4 4 4 4 Hackware 9 | . . . . . . 1 5 9 6 4 10 11 12 25 13 19 13 20 15 14 16 Protection 1 | . 9 . . . . . . . . . . . . 1 4 2 3 3 . . . Energy Gun 2 | . 18 9 . . . . 2 . . 4 . . . . . . . . . . . Energy Cannon 3 | . . . 3 27 15 . . 1 3 . . . 5 5 1 . . . . . . Ballistic Cannon 4 | . . 9 11 2 3 7 6 4 2 5 5 4 . . 3 4 4 5 4 4 7 Special Weapon 3 | . . . . . . . 3 5 5 . 3 . 5 5 4 4 5 4 6 3 5 Peak Build Rating 173 | 7 23 29 31 31 48 64 84 94 100 118 113 115 117 116 122 128 135 150 158 168 173 Average Rating 92 | 6 10 26 27 23 29 59 76 86 85 114 108 112 114 112 114 119 123 138 148 149 163 On Entrance 83 | 6 7 23 19 21 25 48 63 84 85 100 104 112 112 116 115 116 115 134 137 150 153 Avg Prop Armor Cover (%) 8 | . 11 . . . 12 . . . . . . . . . . . . 3 . . . Naked Turns . | . . . . . . . . . . . . . . . . . . . . . . Heaviest Build 152 | 15 50 60 60 60 58 21 79 85 81 85 94 89 93 101 112 111 136 152 140 126 140 Greatest Support 150 | 40 40 60 60 63 63 33 129 109 130 80 117 117 115 115 115 134 77 150 150 132 144 Greatest Overweight (x) 4 | . 4 . . 1 1 . . . 1 1 1 1 . . . 1 2 2 1 1 1 Average Overweight (x) . | . . . . . . . . . . . . . . . . . 1 1 . . . Largest Inventory Capacity 20 | 8 20 20 20 20 20 5 20 20 20 20 20 20 20 20 20 20 20 20 20 20 20 Average Capacity 18 | 8 15 15 20 20 12 5 12 20 20 20 20 20 20 20 20 20 20 20 20 20 20 Most Carried 20 | 6 15 17 20 20 20 5 20 20 20 20 20 20 20 18 20 20 20 20 20 20 20 Average Carried 16 | 5 11 14 18 18 11 5 10 19 19 19 18 19 19 16 18 18 19 19 18 19 18 Final Capacity 20 | 8 15 20 20 20 5 5 20 20 20 20 20 20 20 20 20 20 20 20 20 20 20 Final Carried 20 | 3 15 16 19 20 5 5 20 20 20 19 20 20 18 14 20 18 20 20 15 20 20 Scrap Engine Consumption 159 | . . . . . 18 . 5 14 32 8 . 5 . . . 13 18 17 9 15 5 Constructs Created 5 | . . . . . 3 . . . . . . . . . . . . . . 2 . Constructs Modified 202 | . . . . . 13 4 33 18 17 1 9 6 1 . 5 23 25 7 18 5 17 Class Distribution -------------------- 35% | Bothacker-Construct 29% | Botlord-Construct 9% | Gunner 8% | Construct 7% | Mutant 4% | Scavenger-Gunner 3% | Botlord-Tank Dominant Class ---------------- Mutant | -10/Materials Gunner | -9/Materials Gunner | -9/Storage Gunner | -9/Garrison Construct | -9/Recycling Construct | -7/Factory Bothacker-Construct | -7/Garrison Bothacker-Construct | -6/Factory Bothacker-Construct | -6/Garrison Bothacker-Construct | -5/Factory Bothacker-Construct | -5/Extension Bothacker-Construct | -5/Cetus Bothacker-Construct | -5/Archives Bothacker-Construct | -5/Hub_04(d) Botlord-Construct | -5/Garrison Botlord-Construct | -4/Factory Botlord-Construct | -4/Garrison Botlord-Construct | -3/Research Botlord-Construct | -3/Quarantine Botlord-Construct | -3/Garrison Botlord-Tank | -2/Research Resources | -11 -10 -9 -9 -9 -9 -7 -7 -6 -6 -5 -5 -5 -5 -5 -5 -4 -4 -3 -3 -3 -2 ----------- Run | Yrd Mat Mat Sto Gar Rec Fac Gar Fac Gar Fac Ext Cet Arc Hub Gar Fac Gar Res Qua Gar Res Matter Collected 13926 | 205 547 623 177 905 107 154 226 686 957 165 814 154 144 196 534 776 714 391 2012 2151 1288 Remotely . | . . . . . . . . . . . . . . . . . . . . . . Salvage Created 17056 | 83 796 662 164 949 586 189 1057 581 1677 529 990 814 320 345 886 2298 483 108 1260 1185 1094 Parts 803 | 6 48 45 7 66 27 8 42 20 67 36 32 36 24 12 42 91 30 5 69 59 31 Haulers Intercepted 13 | . 2 . 2 . . . . 1 . 1 3 . . . . 2 . 1 1 . . Recyclers Shooed 7 | . 1 1 . . . . . 1 . . . . . . . 3 . . . . 1 Parts Field Recycled . | . . . . . . . . . . . . . . . . . . . . . . Retrieved Matter . | . . . . . . . . . . . . . . . . . . . . . . Parts Self-Destructed . | . . . . . . . . . . . . . . . . . . . . . . Prevented . | . . . . . . . . . . . . . . . . . . . . . . Parts Restored . | . . . . . . . . . . . . . . . . . . . . . . Kills | -11 -10 -9 -9 -9 -9 -7 -7 -6 -6 -5 -5 -5 -5 -5 -5 -4 -4 -3 -3 -3 -2 ------- Run | Yrd Mat Mat Sto Gar Rec Fac Gar Fac Gar Fac Ext Cet Arc Hub Gar Fac Gar Res Qua Gar Res Combat Hostiles Destroyed 271 | . 11 22 5 34 7 2 20 7 23 5 8 9 . 4 14 28 14 . 24 25 9 Melee 2 | . . . . . . . . . . . . . . . . . . . . 2 . Guns 17 | . 11 4 . . . . 2 . . . . . . . . . . . . . . Cannons 216 | . . 13 2 30 6 2 17 7 22 5 8 . . 4 10 23 13 . 22 23 9 AOE 24 | . . 5 3 3 . . . . 1 . . 4 . . 2 3 1 . 2 . . Classes Destroyed 24 | 2 5 5 . 1 4 . . 1 1 . . . . . 1 1 . . 2 1 . Worker 10 | . 4 1 . . . . . . . 1 . . . . . 2 . 1 1 . . Builder 8 | . . 1 . . . . . . . . . . . . . 3 . . 3 . 1 Tunneler 2 | 1 1 . . . . . . . . . . . . . . . . . . . . Hauler 13 | . 2 . 2 . . . . 1 . 1 3 . . . . 2 . 1 1 . . Recycler 15 | 1 1 . . . 2 . . 1 . 1 1 . . . . 3 . . . . 5 Mechanic 2 | . . 1 . . . . . . . . . 1 . . . . . . . . . Operator 13 | . 1 1 . . . 1 . . . . . . 9 . . . . . 1 . . Watcher 18 | . 3 4 . . . 1 1 . . . 2 2 . 1 1 3 . . . . . Swarmer 73 | . . 4 3 16 . . 12 . 12 . . . . . 2 2 8 . 7 7 . Cutter 2 | . . . . . . . . . . . . . . . . . . . . 2 . Grunt 89 | . 11 12 2 8 1 1 5 3 4 . 4 1 . 1 4 15 2 . 7 6 2 Brawler 7 | . . 2 . . . . . . 3 . . . . . 1 . 1 . . . . Duelist 3 | . . . . . 1 . . . 1 . . . . . . . . . 1 . . Researcher 5 | . . . . . . . . . . . . . . . . . . . 5 . . Sentry 29 | . . 4 . 7 2 1 3 2 . . . . . 1 1 1 . . . 6 1 Demolisher 2 | . . . . . 1 . . . . . . 1 . . . . . . . . . Specialist 7 | . . . . . . . . . . . . . . . 4 1 . . 2 . . Hunter 19 | . . . . . . . . 2 . 3 2 . . 2 2 4 . . . 1 3 Programmer 30 | . . . . 3 . . 1 1 3 2 2 . . . . 6 1 . 6 3 2 Heavy 1 | . . . . . . . . . . . . . . . . 1 . . . . . Q-Series 1 | . . . . . . . . . . . . . . . . . . . 1 . . Behemoth 4 | . . . . . . . . . 1 . . . . . . . 1 . . 1 1 Cetus Guard 7 | . . . . . . . . . . . . 7 . . . . . . . . . Scientist 2 | . . . . . 2 . . . . . . . . . . . . . . . . Scrapper 3 | . . . . . 3 . . . . . . . . . . . . . . . . Butcher 1 | . . . . . . . . . . . . . . 1 . . . . . . . Infiltrator 1 | . . . . . . . . . . . . . . . . . 1 . . . . Best Kill Streak 9 | 2 4 6 4 6 5 1 3 3 6 4 5 7 4 2 7 7 9 1 6 4 4 Combat Bots Only 9 | . 3 4 3 6 4 1 3 2 6 3 4 5 . 2 6 5 9 . 5 4 3 Max Kills in Single Turn 4 | 1 1 3 4 2 1 1 1 1 1 1 1 2 1 1 1 2 1 1 2 1 1 Gunslinging . | . . . . . . . . . . . . . . . . . . . . . . Exploded 3 | . . 2 3 2 . . . . 1 . . 2 . . 1 1 1 . 1 . . Melee 1 | . . . . . . . . . . . . . . . . . . . . 1 . Uniques/NPCs Destroyed . | . . . . . . . . . . . . . . . . . . . . . . Combat | -11 -10 -9 -9 -9 -9 -7 -7 -6 -6 -5 -5 -5 -5 -5 -5 -4 -4 -3 -3 -3 -2 -------- Run | Yrd Mat Mat Sto Gar Rec Fac Gar Fac Gar Fac Ext Cet Arc Hub Gar Fac Gar Res Qua Gar Res Hostile Shots Fired 1408 | . 48 62 10 173 21 9 143 89 127 39 16 22 2 11 58 181 81 8 147 93 68 Missed 491 | . 12 17 . 47 . 3 40 35 34 20 8 8 . 4 20 87 25 2 43 47 39 Hits 917 | . 36 45 10 126 21 6 103 54 93 19 8 14 2 7 38 94 56 6 104 46 29 Melee 8 | . . . . . . . . . 2 . . . . . 3 . . . 2 1 . Projectile 909 | . 36 45 10 126 21 6 103 54 91 19 8 14 2 7 35 94 56 6 102 45 29 AOE 15 | . . . . . 1 . . . . . . 2 . 3 . . . 1 7 1 . Critical Strikes 34 | . . 1 . 1 3 . 4 1 2 . . 5 1 . . 3 1 . 9 2 1 Part Disruptions 1 | . . . . . . . . . 1 . . . . . . . . . . . . Damage Taken 13920 | . 473 619 106 1182 515 90 1475 860 1423 434 118 424 103 367 519 1285 853 238 1573 515 748 Core 1146 | . 79 45 . 150 45 . 132 13 163 37 . 39 . 65 20 86 94 . 79 72 27 Absorbed by Shields 4361 | . . . . 71 . . 46 . 191 155 114 128 . . 408 642 289 98 1523 414 282 Ignored by Resistances 318 | . . . . . . . 17 . . . . . . . . . . . . 114 187 Regen/Repaired (Parts) 6645 | . 217 119 . . 10 . 783 206 1280 113 331 357 13 . 439 627 505 128 588 689 240 Core Remaining (%) 83 | 100 68 . . . 85 . 78 . 76 . . . . . 82 . 82 . . 100 . Volleys Fired 1642 | 7 51 67 13 111 17 11 150 71 142 30 61 19 38 54 97 137 88 34 184 190 70 Largest 3 | 2 2 3 1 3 3 1 2 1 2 1 1 1 1 1 1 1 1 1 1 1 1 Hottest 270 | 40 130 195 50 204 204 160 270 270 164 89 89 240 89 89 89 180 201 201 201 78 78 Shots Fired 1851 | 14 102 105 13 203 36 11 151 71 146 30 61 21 38 53 97 137 87 34 182 189 70 Gun 220 | 14 102 43 . . . . 56 . 4 . . 1 . . . . . . . . . Cannon 1288 | . . 56 12 201 36 11 80 35 117 26 49 6 35 31 67 85 71 8 162 151 49 Launcher 35 | . . 6 1 2 . . . . . . . 14 . . 8 4 . . . . . Special 308 | . . . . . . . 15 36 25 4 12 . 3 22 22 48 16 26 20 38 21 Kinetic 884 | 14 56 61 12 31 3 11 84 32 64 . 7 6 . . 42 78 51 5 162 151 14 Thermal 617 | . 46 38 . 170 33 . 52 1 57 26 42 1 35 31 25 2 20 3 . . 35 Explosive 9 | . . 6 1 2 . . . . . . . . . . . . . . . . . Electromagnetic 33 | . . . . . . . . 2 . . . 14 . . 8 9 . . . . . Robot Hit Streak 38 | 3 11 12 1 11 8 2 38 9 13 13 7 8 8 11 13 11 12 5 13 11 31 Robot Miss Streak 6 | 2 4 2 2 4 3 1 4 3 6 2 2 1 3 3 2 3 4 2 4 3 2 Penetration Max 1 | . . . 1 1 . . . . . . . . . . . 1 1 . . . . Secondary Targets 1 | . . 1 . . . . . . . . . . . . . . . . . . . Max Gunslinging Chain 1 | . . 1 . . . . . . . . . . . . . . . . . . . Shots Hit Robots 1084 | 9 63 72 3 78 23 7 103 51 88 21 44 6 28 30 51 98 42 23 97 93 54 Core Hits 426 | 3 32 31 7 38 10 5 49 9 34 7 10 32 10 7 17 40 14 3 35 23 10 Critical Kills 6 | . . . . 1 . . 5 . . . . . . . . . . . . . . Critical Parts Destroyed 7 | . . . . . 1 . 5 1 . . . . . . . . . . . . . Critical Strikes 42 | . 3 6 2 2 1 . 14 1 . . . . . . . 5 . . 1 6 1 Burn 6 | . 3 . . . . . 3 . . . . . . . . . . . . . . Meltdown 1 | . . . . 1 . . . . . . . . . . . . . . . . . Destroy 12 | . . . . . . . 11 1 . . . . . . . . . . . . . Blast 22 | . . 6 2 1 . . . . . . . . . . . 5 . . 1 6 1 Smash 1 | . . . . . 1 . . . . . . . . . . . . . . . . Melee Attacks 14 | . . . . . 6 . 8 . . . . . . . . . . . . . . Impact 14 | . . . . . 6 . 8 . . . . . . . . . . . . . . Slashing . | . . . . . . . . . . . . . . . . . . . . . . Piercing . | . . . . . . . . . . . . . . . . . . . . . . Sneak Attacks 3 | . . . . . 3 . . . . . . . . . . . . . . . . Combat Hostiles . | . . . . . . . . . . . . . . . . . . . . . . Follow-up Attacks . | . . . . . . . . . . . . . . . . . . . . . . Damage Inflicted 57581 | 123 973 2534 397 2502 746 278 2972 1339 5392 1520 3278 1779 1296 774 3243 6302 2765 250 7724 7223 4171 Guns 2720 | 123 907 505 . . . . 1091 . 94 . . . . . . . . . . . . Cannons 49320 | . . 1526 220 2392 372 278 1690 1321 5100 1520 3205 172 1296 774 2709 5439 2623 219 7164 7129 4171 Explosions 4664 | . . 485 177 110 . . . . 198 . 73 1607 . . 534 780 140 . 560 . . Melee 527 | . . . . . 336 . 191 . . . . . . . . . . . . . . Ramming 350 | . 66 18 . . 38 . . 18 . . . . . . . 83 2 31 . 94 . Kinetic 34346 | 123 504 1604 220 654 . 278 1755 1245 2705 . 368 172 . . 2354 5113 1493 156 7164 7129 1309 Thermal 18593 | . 403 427 . 1738 372 . 1026 . 2687 1520 2910 142 1296 774 498 45 1270 63 560 . 2862 Explosive 1049 | . . 408 177 110 . . . . . . . . . . . 354 . . . . . Electromagnetic 2716 | . . 77 . . . . . 76 . . . 1465 . . 391 707 . . . . . Impact 527 | . . . . . 336 . 191 . . . . . . . . . . . . . . Slashing . | . . . . . . . . . . . . . . . . . . . . . . Piercing . | . . . . . . . . . . . . . . . . . . . . . . Highest Corruption 26 | . 1 . 2 3 3 . . 1 1 1 2 23 24 5 1 2 12 . 26 9 2 Average Corruption 5 | . 1 . 2 2 3 . . 1 1 1 1 17 13 1 1 1 7 . 12 8 2 Corruption Purged 38 | . . . . . . . . . . . . . 19 . . . . . 19 . . Corruption Blocked . | . . . . . . . . . . . . . . . . . . . . . . Effects 195 | . 2 . 1 17 4 . . . 12 1 5 10 16 3 3 9 33 . 41 36 2 Message Errors 43 | . 2 . . 4 1 . . . 2 . . 5 3 1 1 1 10 . 9 4 . Matter Fused 60 | . . . 1 4 3 . . . 7 . . 1 7 1 2 2 13 . 8 11 . Heat Flow Errors 22 | . . . . . . . . . 1 . 1 1 . . . 1 2 . 8 8 . Energy Discharges 18 | . . . . 3 . . . . 1 . . . 1 . . 2 1 . 6 3 1 Parts Rejected 2 | . . . . . . . . . . . . . . . . . 1 . . 1 . Parts Fused 3 | . . . . . . . . . . . . . . . . . 2 . . 1 . Data Loss (minor) 25 | . . . . 2 . . . . . . 1 1 3 . . 3 2 . 7 5 1 Data Loss (major) 9 | . . . . 3 . . . . . . . 1 2 . . . 1 . . 2 . Misfires 2 | . . . . . . . . . 1 . . 1 . . . . . . . . . Alerts 4 | . . . . . . . . . . 1 3 . . . . . . . . . . Misdirections 1 | . . . . . . . . . . . . . . . . . . . 1 . . Weapon Failures 6 | . . . . 1 . . . . . . . . . 1 . . 1 . 2 1 . Overload Shots 1 | . . . . . . . . . . . . 1 . . . . . . . . . Overflow Damage 5499 | . . 140 19 43 145 . 241 102 484 157 556 . 105 40 121 607 262 2 1180 652 643 Projectiles 4928 | . . 140 19 43 . . 180 102 484 157 556 . 105 40 107 492 234 . 1007 619 643 Explosions 326 | . . . . . . . . . . . . . . . 14 111 28 . 173 . . Melee 245 | . . . . . 145 . 61 . . . . . . . . 4 . 2 . 33 . Knockbacks 128 | . . 8 2 2 . 1 15 7 5 . 2 . . . 1 24 4 1 36 13 7 Impact . | . . . . . . . . . . . . . . . . . . . . . . Kinetic 117 | . . 8 1 2 . 1 13 7 5 . 1 . . . 1 21 4 1 34 11 7 Secondary 11 | . . . 1 . . . 2 . . . 1 . . . . 3 . . 2 2 . Self-Inflicted Damage 364 | . 15 81 . . . . . . 46 . . 52 . . 18 . 52 8 92 . . Shots 10 | . . 4 . . . . . . 1 . . 2 . . 1 . 1 . 1 . . Rammed 18 | . 6 1 . . 2 . . 1 . . . . . . . 3 1 2 . 2 . Targets Rammed 22 | . 6 2 . . 4 . . 1 . . . . . . . 3 1 2 . 3 . Kicked . | . . . . . . . . . . . . . . . . . . . . . . Crushed 4 | . . 1 . . 2 . . . . . . . . . . . . . . 1 . Highest Temperature 482 | 6 441 397 29 482 348 306 410 276 242 . 97 243 222 254 254 155 233 316 392 228 56 Average Temperature 87 | 6 132 91 10 116 142 126 115 54 52 . 37 135 80 72 73 33 74 136 114 46 25 Received Heat Transfer 2320 | . 261 264 54 173 300 54 207 141 108 9 18 9 9 . 69 229 97 . 160 56 102 Effects 13 | . 3 5 . 1 1 . 1 . . . . . . . 2 . . . . . . Shutdowns 2 | . 1 1 . . . . . . . . . . . . . . . . . . . Energy Bleed 3 | . . 1 . 1 1 . . . . . . . . . . . . . . . . Interference 7 | . 2 2 . . . . 1 . . . . . . . 2 . . . . . . Short Circuit 1 | . . 1 . . . . . . . . . . . . . . . . . . . Siege Activations . | . . . . . . . . . . . . . . . . . . . . . . Martial Activations . | . . . . . . . . . . . . . . . . . . . . . . Shielding Activations . | . . . . . . . . . . . . . . . . . . . . . . Robots Disrupted . | . . . . . . . . . . . . . . . . . . . . . . Combat Hostiles . | . . . . . . . . . . . . . . . . . . . . . . Robots Corrupted 13 | . . . . . 2 . 1 . . . . 5 . . 2 3 . . . . . Combat Hostiles 11 | . . . . . 1 . 1 . . . . 5 . . 2 2 . . . . . Parts Fried 20 | . . . . . 3 . 1 . . . . 6 . . 4 6 . . . . . Impact Corruptions 16 | . . 1 . . 4 . 4 . . . . . . . . 2 . 1 . 4 . Robots Melted 3 | . . . . 1 . . 2 . . . . . . . . . . . . . . Combat Hostiles 1 | . . . . 1 . . . . . . . . . . . . . . . . . Parts Melted 32 | . 2 . . 10 4 . 4 3 2 . . . 3 1 1 1 . . 1 . . Heat Transferred 11964 | . 1147 999 . 2803 546 . 2650 . 398 . 50 100 888 518 322 37 150 . 450 . 906 Parts Sabotaged 4 | . . . . . . . . . 3 . . . . . . . . . 1 . . Parts Stolen . | . . . . . . . . . . . . . . . . . . . . . . Parts Stripped . | . . . . . . . . . . . . . . . . . . . . . . Power Chain Reactions 14 | . . 1 . . . . . . 2 . 1 3 . . 3 . 2 . 2 . . Alert | -11 -10 -9 -9 -9 -9 -7 -7 -6 -6 -5 -5 -5 -5 -5 -5 -4 -4 -3 -3 -3 -2 ------- Run | Yrd Mat Mat Sto Gar Rec Fac Gar Fac Gar Fac Ext Cet Arc Hub Gar Fac Gar Res Qua Gar Res Maximum Alert Level 5 | . . 1 1 4 2 1 4 3 4 3 2 3 2 1 3 3 4 3 3 4 5 Low Security (%) 26 | 100 100 68 48 5 . . 1 33 3 . 71 . . 58 5 1 . 80 49 . . Level 1 15 | . . 31 51 13 12 100 21 11 8 . 20 6 26 41 11 48 9 6 5 . . Level 2 29 | . . . . 32 87 . 47 36 47 89 8 58 73 . 29 19 12 . 29 25 . Level 3 16 | . . . . 34 . . 25 18 24 10 . 34 . . 52 31 15 12 15 21 16 Level 4 11 | . . . . 14 . . 5 . 15 . . . . . . . 62 . . 52 80 Level 5 . | . . . . . . . . . . . . . . . . . . . . . . High Security . | . . . . . . . . . . . . . . . . . . . . . 2 Max Security . | . . . . . . . . . . . . . . . . . . . . . . Peak Influence 1627 | 10 118 326 268 1236 584 306 1431 839 1425 747 605 750 477 337 1026 865 1441 810 901 1512 1627 Initial 850 | . . 1 132 156 556 239 198 751 112 747 284 324 284 137 139 538 276 810 108 498 850 Average 521 | 1 45 120 193 699 490 264 621 439 727 603 140 553 423 149 671 508 1061 150 367 991 1224 Influence Increases 17665 | 10 454 741 238 1130 388 194 1303 793 1463 299 852 586 315 766 947 1477 1255 353 1712 1224 1165 Destroy 0b10 Robot/C 7650 | . 220 440 100 680 100 60 500 400 760 140 300 260 80 260 420 660 485 30 765 540 450 Destroy 0b10 Robot/NC 602 | 10 60 40 10 . 10 10 20 40 30 15 50 15 45 30 10 75 4 8 52 . 68 Destroy Leader 966 | . 60 118 14 40 . 22 30 88 30 32 44 10 . 58 32 122 40 10 88 32 96 Allied During Kill 2426 | . . . . . . 8 54 141 69 6 344 235 125 308 63 101 114 10 264 102 482 Successful Hack 410 | . 39 9 16 28 22 14 21 50 . . 29 . . 28 26 30 12 37 17 11 21 Select Force Hacks 60 | . 30 . . . 30 . . . . . . . . . . . . . . . . Disable Machine 876 | . 30 60 60 15 . 15 45 15 15 . 75 30 45 30 15 210 48 . 144 24 . Anti-Garrison Action 2004 | . . . . 250 . . 400 . 400 . . . . . 200 150 339 . . 265 . Destroy Structure 1374 | . . 59 23 87 6 . 68 29 99 16 10 36 20 52 166 114 183 8 136 226 36 Advance Influence 50 | . . . . . . 50 . . . . . . . . . . . . . . . Partial Spotted 60 | . . . . . . 15 . 15 . 30 . . . . . . . . . . . Lose Combat Pursuer 495 | . 15 15 15 30 . . 165 15 60 60 . . . . 15 15 30 . 24 24 12 Miscellaneous 692 | . . . . . 220 . . . . . . . . . . . . 250 222 . . Influence Decreases 16038 | 10 449 432 312 134 1172 363 155 2064 198 1144 851 457 632 960 120 2108 209 1601 1241 376 1050 Entered New Map 6150 | . . 4 182 84 680 263 85 680 48 678 296 257 426 256 60 488 119 631 85 166 662 Time Decay 4822 | 10 449 418 130 . 452 100 . 404 . 416 262 120 206 227 . 510 . 400 480 . 238 Lost Part 200 | . . 10 . 50 40 . 10 . 10 10 . . . . . 10 30 . 10 10 10 Lost Ally 1462 | . . . . . . . 60 80 140 40 20 80 . 90 60 200 60 70 222 200 140 Purge Threat 3404 | . . . . . . . . 900 . . 273 . . 387 . 900 . 500 444 . . Squads Dispatched 77 | . 5 4 . . . 1 . 7 . 8 1 1 . 8 . 13 . 6 15 . 8 Investigation 13 | . 4 1 . . . . . 3 . 1 . . . . . . . 3 1 . . Extermination 15 | . . . . . . . . 3 . 3 . . . 1 . 3 . . 4 . 1 Reinforcement 31 | . 1 3 . . . 1 . 1 . 1 1 . . 4 . 6 . 3 5 . 5 Assault 13 | . . . . . . . . . . 3 . 1 . 2 . 3 . . 2 . 2 Garrison 5 | . . . . . . . . . . . . . . 1 . 1 . . 3 . . Intercept . | . . . . . . . . . . . . . . . . . . . . . . Searches Triggered . | . . . . . . . . . . . . . . . . . . . . . . Construction Impeded 5 | . . 1 . . . . . . . . 1 . . . . . . . . . 3 Haulers Reinforced 3 | . . . . . . . . 1 . . . . . . . . . 1 . . 1 Active Scanning Responses . | . . . . . . . . . . . . . . . . . . . . . . Cargo Convoy Interrupts 2 | . . . . . . . . 1 . 1 . . . . . . . . . . . Stealth | -11 -10 -9 -9 -9 -9 -7 -7 -6 -6 -5 -5 -5 -5 -5 -5 -4 -4 -3 -3 -3 -2 --------- Run | Yrd Mat Mat Sto Gar Rec Fac Gar Fac Gar Fac Ext Cet Arc Hub Gar Fac Gar Res Qua Gar Res Distress Signals 36 | . 2 3 . . . . 1 3 . 1 2 2 . 2 . 3 2 6 2 . 7 Communications Jammed 17 | . . . . . . . . . . . . . . . . . 1 . 16 . . Distress Signals 17 | . . . . . . . . . . . . . . . . . 1 . 16 . . Times Spotted 654 | . 19 29 6 32 5 5 44 42 53 13 24 17 15 23 33 75 39 10 64 56 50 Peak Tracking Total 13 | . 5 4 3 7 4 2 8 7 11 5 7 10 2 6 6 10 13 2 7 6 11 Tactical Retreats 23 | . 1 1 1 2 . . 7 1 2 2 . . . . 1 1 1 . 1 1 1 Traps | -11 -10 -9 -9 -9 -9 -7 -7 -6 -6 -5 -5 -5 -5 -5 -5 -4 -4 -3 -3 -3 -2 ------- Run | Yrd Mat Mat Sto Gar Rec Fac Gar Fac Gar Fac Ext Cet Arc Hub Gar Fac Gar Res Qua Gar Res Traps Triggered 42 | . 2 1 1 6 . . 8 . 2 3 1 . . . 1 . 2 1 4 9 1 Indirectly 1 | . . . . . . . . . . . . . . . 1 . . . . . . Trap Hack Attempts . | . . . . . . . . . . . . . . . . . . . . . . Triggered . | . . . . . . . . . . . . . . . . . . . . . . Disarmed . | . . . . . . . . . . . . . . . . . . . . . . Reprogrammed . | . . . . . . . . . . . . . . . . . . . . . . Reused . | . . . . . . . . . . . . . . . . . . . . . . Traps Extracted . | . . . . . . . . . . . . . . . . . . . . . . Installed . | . . . . . . . . . . . . . . . . . . . . . . Triggered . | . . . . . . . . . . . . . . . . . . . . . . Machines | -11 -10 -9 -9 -9 -9 -7 -7 -6 -6 -5 -5 -5 -5 -5 -5 -4 -4 -3 -3 -3 -2 ---------- Run | Yrd Mat Mat Sto Gar Rec Fac Gar Fac Gar Fac Ext Cet Arc Hub Gar Fac Gar Res Qua Gar Res Machines Disabled 100 | . 2 4 4 4 . 1 8 1 8 . 5 2 3 2 8 15 12 . 13 8 . Max in Single Turn 3 | . 1 1 2 1 . 1 1 . 2 . 1 1 . 1 2 3 2 . 1 1 . Garrison Access 8 | . . . . . . . . 1 . 1 . . . 1 . 2 . 2 . . 1 Garrison Relay 26 | . . . . 3 . . 4 . 6 . . . . . 3 . 5 . . 5 . Phase Generator 3 | . . . . . . . . . 1 . . . . . 1 . 1 . . . . Network Hub 2 | . . . . . . . . . . . . . . 2 . . . . . . . Machines Repaired . | . . . . . . . . . . . . . . . . . . . . . . Machines Dismantled . | . . . . . . . . . . . . . . . . . . . . . . Machines Sabotaged . | . . . . . . . . . . . . . . . . . . . . . . Overloaded Fab Kills . | . . . . . . . . . . . . . . . . . . . . . . Hacking | -11 -10 -9 -9 -9 -9 -7 -7 -6 -6 -5 -5 -5 -5 -5 -5 -4 -4 -3 -3 -3 -2 --------- Run | Yrd Mat Mat Sto Gar Rec Fac Gar Fac Gar Fac Ext Cet Arc Hub Gar Fac Gar Res Qua Gar Res Machines Accessed 84 | . 6 5 3 4 5 2 2 10 2 2 7 . . 7 1 9 1 7 7 1 3 Terminals 57 | . 4 3 2 4 2 1 2 6 2 2 7 . . 5 1 3 1 3 6 1 2 Fabricators 3 | . . . . . . . . 2 . . . . . . . 1 . . . . . Repair Stations 4 | . 1 1 . . . . . . . . . . . . . 1 . 1 . . . Recycling Units 3 | . 1 . . . 2 . . . . . . . . . . . . . . . . Scanalyzers 4 | . . 1 . . . . . . . . . . . . . 2 . 1 . . . Garrison Access 12 | . . . 1 . . 1 . 2 . . . . . 2 . 2 . 2 1 . 1 Total Hacks 218 | . 22 16 10 8 13 3 3 28 3 5 16 . . 19 5 24 4 16 18 2 3 Successful 106 | . 12 11 4 2 9 2 2 13 . 1 5 . . 11 2 14 1 7 7 1 2 Failed 112 | . 10 5 6 6 4 1 1 15 3 4 11 . . 8 3 10 3 9 11 1 1 Catastrophic 24 | . . . . 2 . 1 . 1 1 . 6 . . . 1 3 . 5 3 . 1 Database Lockouts . | . . . . . . . . . . . . . . . . . . . . . . Manual 107 | . 10 6 8 . 7 1 . 9 . 5 9 1 . 12 3 15 . 6 13 . 2 Terminals 157 | . 16 9 9 8 5 2 3 20 3 5 16 . . 15 5 11 4 9 13 2 2 Fabricators 9 | . . . . . . . . 6 . . . . . . . 3 . . . . . Repair Stations 10 | . 5 2 . . . . . . . . . . . . . 2 . 1 . . . Recycling Units 7 | . 1 . . . 6 . . . . . . . . . . . . . . . . Scanalyzers 15 | . . 5 . . . . . . . . . . . . . 6 . 4 . . . Garrison Access 18 | . . . 1 . . 1 . 2 . . . . . 4 . 2 . 2 5 . 1 Terminal Hacks 43 | . 6 2 1 2 3 . 2 7 . . 4 . . 3 2 3 1 3 3 1 . Record 1 | . . . . . . . . 1 . . . . . . . . . . . . . Part Schematic 2 | . 1 . . . . . . 1 . . . . . . . . . . . . . Robot Analysis 4 | . 3 1 . . . . . . . . . . . . . . . . . . . Prototype ID Bank 2 | . 1 . . . . . . . . . 1 . . . . . . . . . . Open Door 1 | . . . . . . . 1 . . . . . . . . . . . . . . Branch Access Points 1 | . . . . . . . . . . . . . . . . . . 1 . . . Emergency Access Points 4 | . . . . 1 . . 1 . . . . . . . 1 . . . . 1 . Terminal Index 3 | . . . . . 1 . . 1 . . . . . . . . . 1 . . . Garrison Index 1 | . . . . . . . . . . . . . . 1 . . . . . . . Unreport Threat 11 | . . . . . . . . 2 . . 2 . . 1 . 3 . . 3 . . Locate Traps 4 | . 1 1 . . . . . . . . 1 . . 1 . . . . . . . Registered Components 2 | . . . . . . . . 1 . . . . . . . . . 1 . . . Registered Prototypes 1 | . . . . . . . . 1 . . . . . . . . . . . . . Zone Layout 1 | . . . 1 . . . . . . . . . . . . . . . . . . Garrison Registry 2 | . . . . . . . . . . . . . . . 1 . 1 . . . . Patrol Navigation 1 | . . . . 1 . . . . . . . . . . . . . . . . . Release Object 2 | . . . . . 2 . . . . . . . . . . . . . . . . Fabricator Hacks 3 | . . . . . . . . 2 . . . . . . . 1 . . . . . Load Schematic 1 | . . . . . . . . 1 . . . . . . . . . . . . . Build 2 | . . . . . . . . 1 . . . . . . . 1 . . . . . Repair Station Hacks 6 | . 4 2 . . . . . . . . . . . . . . . . . . . Scan Component 3 | . 2 1 . . . . . . . . . . . . . . . . . . . Repair 3 | . 2 1 . . . . . . . . . . . . . . . . . . . Recycling Unit Hacks 1 | . . . . . 1 . . . . . . . . . . . . . . . . Retrieve Components 1 | . . . . . 1 . . . . . . . . . . . . . . . . Scanalyzer 10 | . . 5 . . . . . . . . . . . . . 4 . 1 . . . Insert Component 2 | . . . . . . . . . . . . . . . . 2 . . . . . Analyze 1 | . . . . . . . . . . . . . . . . 1 . . . . . Retrieve Study 7 | . . 5 . . . . . . . . . . . . . 1 . 1 . . . Garrison Access Hacks 12 | . . . 1 . . 1 . 2 . . . . . 2 . 2 . 2 1 . 1 Unlock Access 7 | . . . 1 . . 1 . 1 . . . . . 2 . 1 . . 1 . . Seal Access 5 | . . . . . . . . 1 . . . . . . . 1 . 2 . . 1 Unauthorized Hacks 31 | . 2 2 2 . 5 1 . 2 . 1 1 . . 6 . 4 . 1 3 . 1 Terminals 23 | . 1 2 2 . 2 1 . 2 . 1 1 . . 6 . 2 . . 2 . 1 Track 4 | . . . . . . . . . . . . . . 4 . . . . . . . Assimilate 2 | . . 1 . . . . . . . . . . . . . . . . 1 . . Botnet 12 | . 1 1 2 . . 1 . 1 . 1 1 . . 2 . 1 . . 1 . . Operators 3 | . . . . . . . . 1 . . . . . . . 1 . . . . 1 Skim 2 | . . . . . 2 . . . . . . . . . . . . . . . . Fabricators 1 | . . . . . . . . . . . . . . . . 1 . . . . . Prioritize 1 | . . . . . . . . . . . . . . . . 1 . . . . . Repair Stations 2 | . . . . . . . . . . . . . . . . 1 . 1 . . . Mechanics 2 | . . . . . . . . . . . . . . . . 1 . 1 . . . Recycling Units 4 | . 1 . . . 3 . . . . . . . . . . . . . . . . Reject 1 | . . . . . 1 . . . . . . . . . . . . . . . . Mask 1 | . . . . . 1 . . . . . . . . . . . . . . . . Tunnel 2 | . 1 . . . 1 . . . . . . . . . . . . . . . . Scanalyzers . | . . . . . . . . . . . . . . . . . . . . . . Garrison Access 1 | . . . . . . . . . . . . . . . . . . . 1 . . Broadcast 1 | . . . . . . . . . . . . . . . . . . . 1 . . Data Cores Recovered 5 | . . . . . . . . 2 . . 1 . . . . 1 . . 1 . . Used 2 | . . . . . . . . 1 . . 1 . . . . . . . . . . Hacking Detections 63 | . 5 5 2 4 3 1 . 8 2 2 7 . . 6 1 5 1 4 5 1 1 Full Trace Events 7 | . 2 1 . . . . . 3 . 1 . . . . . . . . . . . Feedback Events 1 | . . . . . . . . 1 . . . . . . . . . . . . . Corruption 1 | . . . . . . . . 1 . . . . . . . . . . . . . Feedback Blocked . | . . . . . . . . . . . . . . . . . . . . . . Robot Schematics Acquired 5 | . . . . . . . . . . . . . . . . . . . 5 . . Robots Built . | . . . . . . . . . . . . . . . . . . . . . . Authchips . | . . . . . . . . . . . . . . . . . . . . . . Time . | . . . . . . . . . . . . . . . . . . . . . . Total Robot Build Rating . | . . . . . . . . . . . . . . . . . . . . . . Part Schematics Acquired 22 | . 1 . . . . . . 1 . . . . . . . 1 . . 19 . . Parts Built 3 | . . . . . . . . 2 . . . . . . . 1 . . . . . Authchips . | . . . . . . . . . . . . . . . . . . . . . . Time 170 | . . . . . . . . 31 . . . . . . . 139 . . . . . Total Part Build Rating 19 | . . . . . . . . 10 . . . . . . . 9 . . . . . Part Studies Acquired 7 | . . 5 . . . . . . . . . . . . . 1 . 1 . . . Parts Repaired 3 | . 2 1 . . . . . . . . . . . . . . . . . . . Time 90 | . 52 38 . . . . . . . . . . . . . . . . . . . Parts Recycled . | . . . . . . . . . . . . . . . . . . . . . . Recycled Matter . | . . . . . . . . . . . . . . . . . . . . . . Retrieved Matter . | . . . . . . . . . . . . . . . . . . . . . . Retrieved Components 1 | . . . . . 1 . . . . . . . . . . . . . . . . Parts Scanalyzed 2 | . . . . . . . . . . . . . . . . 2 . . . . . Part Schematics Acquired 1 | . . . . . . . . . . . . . . . . 1 . . . . . Parts Damaged 1 | . . . . . . . . . . . . . . . . 1 . . . . . Bothacking | -11 -10 -9 -9 -9 -9 -7 -7 -6 -6 -5 -5 -5 -5 -5 -5 -4 -4 -3 -3 -3 -2 ------------ Run | Yrd Mat Mat Sto Gar Rec Fac Gar Fac Gar Fac Ext Cet Arc Hub Gar Fac Gar Res Qua Gar Res Used RIF Installer 6 | . . . . 1 . . 1 . 1 . . . . . 1 . 1 . . 1 . Coupler Efficiency 1 | . . . . . . . . . . . . . . . . . . . . 1 . Hotswap 1 | . . . . . . . 1 . . . . . . . . . . . . . . Code Merge 1 | . . . . . . . . . 1 . . . . . . . . . . . . Threat Obfuscator 1 | . . . . . . . . . . . . . . . . . 1 . . . . Zone Cloak 1 | . . . . . . . . . . . . . . . 1 . . . . . . Patrol Navigation 1 | . . . . . 1 . . . . . . . . . . . . . . . . Robots Hacked 170 | . . . . . . . 7 18 9 3 6 . 2 12 11 27 11 11 12 23 18 Non-combat 33 | . . . . . . . . 9 . . . . . 7 1 3 . 10 1 . 2 Combat 137 | . . . . . . . 7 9 9 3 6 . 2 5 10 24 11 1 11 23 16 Robot Hacks Applied 207 | . . . . . . . 8 27 10 4 7 . 2 17 13 34 11 19 14 23 18 parse_system 6 | . . . . . . . . . . . 1 . . . 1 2 . 2 . . . no_distress 1 | . . . . . . . . 1 . . . . . . . . . . . . . start_evac 1 | . . . . . . . . . . . . . . . 1 . . . . . . ignore_repairs 2 | . . . . . . . . . . . . . . . . . . . 2 . . map_walls 1 | . . . . . . . . . . . . . . . . . . . 1 . . find_fabricator 1 | . . . . . . . . 1 . . . . . . . . . . . . . drop_inventory 7 | . . . . . . . . 1 . . . . . 1 . . . 5 . . . find_recycling 1 | . . . . . . . . 1 . . . . . . . . . . . . . ignore_parts 1 | . . . . . . . . . . . . . . . . . . . . . 1 purge_threat 18 | . . . . . . . . 7 . . . . . 2 . 4 . 5 . . . find_terminals 1 | . . . . . . . . . . . . . . 1 . . . . . . . block_reporting 5 | . . . . . . . . 1 . . . . . 1 . 1 . 2 . . . map_route 4 | . . . . . . . . 1 . . . . . 3 . . . . . . . find_garrison 7 | . . . . . . . . 1 . 1 . . . . . 4 . 1 . . . spike_heat 3 | . . . . . . . . . 2 . . . . . . . . . . 1 . overload_power 3 | . . . . . . . . 2 . . . . . . . . . . . . 1 amplify_resonance 51 | . . . . . . . 5 7 2 . 1 . . 2 6 7 4 . 6 5 6 reboot_system 3 | . . . . . . . . . . . . . . . . . . . 1 2 . go_dormant 1 | . . . . . . . . . . . . . . . . . . . . 1 . overwrite_iff 23 | . . . . . . . 3 1 1 1 1 . 1 1 1 5 1 . . 5 2 streamctrl_high 1 | . . . . . . . . . . . . . . . 1 . . . . . . formatsys_low 10 | . . . . . . . . 2 . . . . . 2 1 2 . 3 . . . formatsys_high 56 | . . . . . . . . 1 5 2 4 . 1 4 2 9 6 1 4 9 8 Relay Couplers Released 123 | . . . . 13 . . 19 1 24 2 . . . 3 12 2 22 2 . 21 2 Machine Destruction 119 | . . . . 13 . . 15 1 24 2 . . . 3 12 2 22 2 . 21 2 Programmers 4 | . . . . . . . 4 . . . . . . . . . . . . . . Attached 30 | . . . . . . . 2 5 4 1 1 . . 1 1 6 2 2 . 4 1 Merged Code Value 71 | . . . . . . . . . . . . . . . . . . . 7 58 6 Fabnet Peak Effective % . | . . . . . . . . . . . . . . . . . . . . . . Robots Rewired 10 | . . . . . 2 . 2 . 3 . 2 . . . 1 . . . . . . Allies Hacked 7 | . . . . . . . . . . 1 . . . . . 1 1 . 3 . 1 Hacks Repelled . | . . . . . . . . . . . . . . . . . . . . . . Allies | -11 -10 -9 -9 -9 -9 -7 -7 -6 -6 -5 -5 -5 -5 -5 -5 -4 -4 -3 -3 -3 -2 -------- Run | Yrd Mat Mat Sto Gar Rec Fac Gar Fac Gar Fac Ext Cet Arc Hub Gar Fac Gar Res Qua Gar Res Total Allies 129 | . . . . . 2 . 7 4 10 3 12 5 2 6 6 17 9 4 14 14 14 Largest Group 12 | . . . . . 2 2 4 5 4 3 12 10 10 11 4 4 5 6 5 4 11 Highest-Rated Group 764 | . . . . . 36 36 227 250 169 87 532 764 668 637 142 281 245 290 408 233 721 Highest-Rated Ally 159 | . . . . . 21 21 95 95 85 29 159 159 159 96 49 142 95 56 82 64 69 Total Orders 22 | . . . . . . 2 . 1 1 . . . 2 3 3 . 5 4 . . 1 STAY 11 | . . . . . . 1 . . 1 . . . 1 3 . . 3 1 . . 1 FOLLOW 6 | . . . . . . 1 . . . . . . 1 . 1 . 2 1 . . . AID 5 | . . . . . . . . 1 . . . . . . 2 . . 2 . . . Ally Attacks 883 | . . . . . . 6 24 64 63 7 75 21 32 67 47 62 48 20 117 78 152 Total Damage 29056 | . . . . . . 122 628 1987 1659 95 1860 559 1082 2340 1011 1823 1668 738 4240 2911 6333 Kills 182 | . . . . . . 1 5 21 15 2 12 4 4 16 7 7 13 2 29 11 33 Allies Corrupted 9 | . . . . . . . . . . . . . . 4 . . 1 1 2 . 1 Allies Melted 3 | . . . . . . . . . 1 . . . . 1 . 1 . . . . . X0-1V1 Amusement Gains 310 | . 9 25 15 10 59 5 . . 20 15 . 20 . 60 22 . . . 49 . 1 Good Acts 162 | . . 6 1 10 13 2 19 4 14 11 6 1 6 4 9 10 7 4 11 13 11 Bad Acts 61 | . . 3 . 1 4 . . 4 3 2 1 2 1 5 5 3 8 6 11 2 . Intel | -11 -10 -9 -9 -9 -9 -7 -7 -6 -6 -5 -5 -5 -5 -5 -5 -4 -4 -3 -3 -3 -2 ------- Run | Yrd Mat Mat Sto Gar Rec Fac Gar Fac Gar Fac Ext Cet Arc Hub Gar Fac Gar Res Qua Gar Res Active Infowar (turns) 1078 | 10 356 . . . . . . . . . . . . . . . 157 1 554 . . Seismic 366 | 10 356 . . . . . . . . . . . . . . . . . . . . Spoofing 2 | . . . . . . . . . . . . . . . . . 2 . . . . Jamming 710 | . . . . . . . . . . . . . . . . . 155 1 554 . . Robot Analysis Total 4 | . 3 1 . . . . . . . . . . . . . . . . . . . Derelict Logs Recovered . | . . . . . . . . . . . . . . . . . . . . . . Drone Launches . | . . . . . . . . . . . . . . . . . . . . . . Drone Recoveries . | . . . . . . . . . . . . . . . . . . . . . . Exploration | -11 -10 -9 -9 -9 -9 -7 -7 -6 -6 -5 -5 -5 -5 -5 -5 -4 -4 -3 -3 -3 -2 ------------- Run | Yrd Mat Mat Sto Gar Rec Fac Gar Fac Gar Fac Ext Cet Arc Hub Gar Fac Gar Res Qua Gar Res Turns Passed 21140 | 34 1212 1300 270 1235 1126 215 1886 967 1573 1016 726 253 434 580 784 1385 1469 1353 1575 1213 534 Spaces Moved 12234 | 5 550 611 134 552 424 168 1025 854 901 602 480 214 172 502 512 861 571 873 1045 849 329 Core . | . . . . . . . . . . . . . . . . . . . . . . Treads 6768 | 3 489 611 134 552 321 . 261 673 850 . . 6 172 502 108 515 44 604 . 770 153 Legs 721 | 2 . . . . . 101 191 13 . . . . . . . 43 89 . 199 79 4 Wheels 181 | . 61 . . . 76 . . 44 . . . . . . . . . . . . . Hover 2148 | . . . . . . . 537 124 . . 32 208 . . 404 230 188 269 88 . 68 Flight 2416 | . . . . . 27 67 36 . 51 602 448 . . . . 73 250 . 758 . 104 Fastest Speed 47 | 120 110 160 160 160 85 88 64 65 85 85 63 63 85 85 85 85 125 98 84 47 71 Average Speed 120 | 144 157 160 160 160 150 100 134 87 127 85 87 64 85 85 89 124 179 142 111 88 121 Slowest Speed 296 | 160 240 160 160 200 201 122 226 107 296 219 219 219 85 85 93 225 240 192 158 150 128 Overloaded Moves . | . . . . . . . . . . . . . . . . . . . . . . Propulsion Burnouts . | . . . . . . . . . . . . . . . . . . . . . . Robots Hopped 9 | . . . . . . . . . . 5 4 . . . . . . . . . . Potential Cave-ins 5 | . . . . . . . . . . . . . . 5 . . . . . . . Cave-ins Triggered . | . . . . . . . . . . . . . . . . . . . . . . Exploration Rate (%) 54 | 2 90 49 25 82 53 4 87 29 91 17 70 66 81 53 60 29 71 29 96 94 17 Regions Visited 21 Branch Regions 7 Pre-discovered Areas 2 | . 1 . . . 1 . . . . . . . . . . . . . . . . Known Exits Taken 11 | . . 1 1 . 1 1 . 1 . 1 . . 1 1 . 1 . 1 1 . . Unknown Exits Taken 4 | 1 1 . . . . . . . . . 1 1 . . . . . . . . . Scrap Searched . | . . . . . . . . . . . . . . . . . . . . . . Spaces Dug 67 | . . 1 . 11 . . 3 3 7 . . . . 3 6 . 1 . 11 19 2 Terrain Destroyed 770 | . . 59 23 20 4 . 16 8 125 8 6 26 8 14 123 65 128 3 75 51 8 Melee 1 | . . . . . . . 1 . . . . . . . . . . . . . . Projectile 339 | . . 17 6 17 4 . 15 8 39 8 3 1 8 14 23 27 26 3 61 51 8 AOE 430 | . . 42 17 3 . . . . 86 . 3 25 . . 100 38 102 . 14 . . Terrain Rammed . | . . . . . . . . . . . . . . . . . . . . . . Walls Destroyed . | . . . . . . . . . . . . . . . . . . . . . . Machines Disabled . | . . . . . . . . . . . . . . . . . . . . . . Actions | -11 -10 -9 -9 -9 -9 -7 -7 -6 -6 -5 -5 -5 -5 -5 -5 -4 -4 -3 -3 -3 -2 --------- Run | Yrd Mat Mat Sto Gar Rec Fac Gar Fac Gar Fac Ext Cet Arc Hub Gar Fac Gar Res Qua Gar Res Total 17303 | 18 786 824 172 714 873 204 1388 1028 1243 1088 762 317 433 621 769 1085 987 975 1350 1230 436 Wait 2650 | . 146 106 3 31 369 19 130 60 138 423 196 74 209 62 129 49 256 33 78 116 23 Move 12200 | 4 549 610 134 551 423 168 1024 854 900 591 472 213 171 501 511 861 570 872 1044 848 329 Hop 8 | . . . . . . . . . . 5 3 . . . . . . . . . . Pick Up 212 | . 16 10 9 5 9 . 27 13 26 9 4 2 4 . 14 6 17 9 5 22 5 Fast Attach 46 | 1 2 4 . 1 2 2 1 3 1 7 . 1 1 . 2 3 4 3 5 3 . Attach 54 | 2 . 2 1 6 2 . . 6 4 3 1 . 2 . 1 5 4 5 3 4 3 Detach 9 | . . . . . 1 . . . . 2 . . . . . 1 . 1 . 3 1 Swap 122 | 1 10 12 5 5 3 2 8 10 7 5 3 5 6 3 5 10 5 5 6 4 2 Drop 177 | 3 6 11 7 1 14 2 11 10 24 11 2 3 2 . 10 9 14 10 8 16 3 Fire 1642 | 7 51 67 13 111 17 11 150 71 142 30 61 19 38 54 97 137 88 34 184 190 70 Melee 14 | . . . . . 6 . 8 . . . . . . . . . . . . . . Ram 4 | . 2 . . . . . . . . . . . . . . . 1 1 . . . Kick . | . . . . . . . . . . . . . . . . . . . . . . Crush 18 | . 4 2 . . 4 . . 1 . . . . . . . 3 . 1 . 3 . Escape Stasis 80 | . . . . 3 . . 8 . . . 19 . . . . . 27 . 17 6 . Rewire 53 | . . . . . 23 . 21 . 1 2 1 . . 1 . 1 1 1 . 1 . Trap . | . . . . . . . . . . . . . . . . . . . . . . Miscellaneous 14 | . . . . . . . . . . . . . . . . . . . . 14 . Route ------- -11/Scrapyard -10/Materials (discovered 5 exits: *Mat x3 / [*Min] / [*Sub]) -9/Materials (discovered 3 exits: [*Mat x2] / *Sto) -9/Storage -9/Garrison (discovered 3 exits: *Rec x3) -9/Recycling -7/Factory -7/Garrison (discovered 3 exits: *Fac x3) -6/Factory (discovered 2 exits: *Fac / Gar) -6/Garrison (discovered 3 exits: *Fac x3) -5/Factory (discovered 3 exits: Fac / *Ext x2) -5/Extension (discovered 2 exits: *Fac / *Cet) -5/Cetus (discovered 2 exits: *Fac / [*Arc]) -5/Archives (discovered 3 exits: *Fac / *Hub x2) -5/Hub_04(d) (discovered 4 exits: *Fac x3 / Gar) -5/Garrison (discovered 3 exits: *Fac x3) -4/Factory (discovered 3 exits: *Res / [*Upp] / Gar) -4/Garrison (discovered 3 exits: *Res x3) -3/Research (discovered 6 exits: *Res x3 / Arm / *Qua x2) -3/Quarantine (discovered 2 exits: *Res / Gar) -3/Garrison (discovered 3 exits: *Res x3) -2/Research (discovered 2 exits: *Acc x2) History --------- Turn | Location | Event 13 | -11/Scrapyard | Discovered new exit (range 2) 35 | -11/Scrapyard | Entered Materials 310 | -10/Materials | Build established: Mutant 549 | -10/Materials | Discovered new exit (range 16) 845 | -10/Materials | Discovered new exit (range 15) 923 | -10/Materials | Repaired Lgt. Treads 951 | -10/Materials | Repaired Lgt. Treads 1066 | -10/Materials | Discovered new exit (range 10) 1152 | -10/Materials | Discovered new exit (range 5) 1176 | -10/Materials | Discovered new exit (range 15) 1207 | -10/Materials | Prayed at D.C.S.S. Altar Unit 1247 | -10/Materials | Entered another Materials area 1247 | -9/Materials | Evolved 2 slots: Propulsion x1, Weapon x1 1296 | -9/Materials | Core integrity permanently improved by X0-1V1 (+200) 1309 | -9/Materials | X0-1V1 announced a LAN party 1379 | -9/Materials | Discovered new exit (range 6) 1541 | -9/Materials | Build established: Gunner 1545 | -9/Materials | Discovered new exit (range 13) 1864 | -9/Materials | X0-1V1 sent you to a vault 1994 | -9/Materials | Discovered new exit (range 12) 2286 | -9/Materials | Repaired Hvy. Assault Cannon 2546 | -9/Materials | Identified exit to Storage 2547 | -9/Materials | Entered Storage 2817 | -9/Storage | Identified exit to Garrison 2817 | -9/Storage | Entered Garrison 2824 | -9/Garrison | Heat dissipation permanently improved by X0-1V1 (+20; -100 max core) 2877 | -9/Garrison | Triggered checkpoint 2909 | -9/Garrison | Identified exit to Recycling 2909 | -9/Garrison | X0-1V1 revealed exit location to -9/Recycling 2918 | -9/Garrison | Garrison Relay disabled 2951 | -9/Garrison | X0-1V1 activates XOMVISION 2959 | -9/Garrison | Installed Relay Interface Framework 2984 | -9/Garrison | Triggered checkpoint 3061 | -9/Garrison | Triggered checkpoint 3231 | -9/Garrison | Garrison Relay disabled 3333 | -9/Garrison | Triggered checkpoint 3426 | -9/Garrison | Build established: Scavenger-Gunner 3467 | -9/Garrison | Triggered checkpoint 3542 | -9/Garrison | Garrison Relay disabled 3571 | -9/Garrison | Discovered exit to Recycling (range 12) 3677 | -9/Garrison | Triggered checkpoint 3754 | -9/Garrison | Build established: Gunner 3773 | -9/Garrison | Discovered exit to Recycling (range 12) 3846 | -9/Garrison | Triggered checkpoint 4052 | -9/Garrison | Entered Recycling 4053 | -9/Recycling | Met a Zionite searching for Scraptown 4173 | -9/Recycling | Energy generation permanently improved by X0-1V1 (+20; -200 max core) 4262 | -9/Recycling | Identified exit to Factory 4262 | -9/Recycling | X0-1V1 revealed exit location to -7/Factory 4324 | -9/Recycling | Expanded RIF knowledge: Patrol Navigation 4355 | -9/Recycling | Build established: Scavenger-Gunner 4394 | -9/Recycling | Scanned before Scraplab entrance 4409 | -9/Recycling | Angered Scraplab inhabitants 4468 | -9/Recycling | Lost 4 parts (1n1u2w) 4603 | -9/Recycling | Found Prototype Device 4603 | -9/Recycling | Identified Scrap Engine 4802 | -9/Recycling | X0-1V1 mutated your Weapon slot to Power slot 4816 | -9/Recycling | X0-1V1 added 0b10 threat records associated with you (considerable) 4979 | -9/Recycling | Build established: Construct 5061 | -9/Recycling | X0-1V1 activates XOMVISION 5178 | -9/Recycling | Entered Factory 5178 | -7/Factory | Accompanied by 2 allies 5178 | -7/Factory | Evolved 4 slots: Propulsion x1, Utility x2, Weapon x1 5308 | -7/Factory | X0-1V1 released a cloud of subatomizers 5393 | -7/Factory | Identified exit to Garrison 5393 | -7/Factory | Entered Garrison 5393 | -7/Garrison | Accompanied by 1 ally 5424 | -7/Garrison | Expanded RIF knowledge: Hotswap 5431 | -7/Garrison | Triggered checkpoint 5468 | -7/Garrison | Garrison Relay disabled 5605 | -7/Garrison | Triggered checkpoint 5741 | -7/Garrison | Triggered checkpoint 5770 | -7/Garrison | Build established: Bothacker-Construct 5772 | -7/Garrison | Discovered new exit (range 15) 5923 | -7/Garrison | Triggered checkpoint 6230 | -7/Garrison | X0-1V1 activates XOMVISION 6481 | -7/Garrison | Triggered checkpoint 6620 | -7/Garrison | Identified exit to Factory 6620 | -7/Garrison | X0-1V1 revealed exit location to -6/Factory 6702 | -7/Garrison | Triggered checkpoint 6721 | -7/Garrison | Discovered exit to Factory (range 10) 6745 | -7/Garrison | Found embedded Infiltrators 6788 | -7/Garrison | Garrison Relay disabled 7177 | -7/Garrison | Triggered checkpoint 7220 | -7/Garrison | Garrison Relay disabled 7264 | -7/Garrison | Garrison Relay disabled 7279 | -7/Garrison | Entered Factory 7279 | -6/Factory | Accompanied by 4 allies 7279 | -6/Factory | Evolved 2 slots: Utility x2 7937 | -6/Factory | Fabricated Imp. Cryofiber Web (x2) 7980 | -6/Factory | Discovered new exit (range 13) 7981 | -6/Factory | X0-1V1 foreshadows a heat wave 8089 | -6/Factory | Ambient heat levels rising (+10) 8126 | -6/Factory | X0-1V1 mutated your Utility slot to Propulsion slot 8169 | -6/Factory | Cargo convoy interrupted 8233 | -6/Factory | Ambient heat levels rising (+10) 8246 | -6/Factory | Identified exit to Garrison 8246 | -6/Factory | Entered Garrison 8262 | -6/Garrison | Garrison Relay disabled 8282 | -6/Garrison | Triggered checkpoint 8308 | -6/Garrison | Garrison Relay disabled 8363 | -6/Garrison | X0-1V1 destroyed Phase Generator 8363 | -6/Garrison | Phase Generator disabled 8397 | -6/Garrison | Triggered checkpoint 8432 | -6/Garrison | Spotted B-75 Beast 8440 | -6/Garrison | Triggered checkpoint 8441 | -6/Garrison | Assimilated Beast 5a with formatsys_high 8451 | -6/Garrison | Triggered checkpoint 8454 | -6/Garrison | Triggered checkpoint 8521 | -6/Garrison | Spotted B-75 Beast 8534 | -6/Garrison | Destroyed B-75 Beast 8723 | -6/Garrison | Discovered new exit (range 12) 8754 | -6/Garrison | Triggered checkpoint 8874 | -6/Garrison | Triggered checkpoint 8883 | -6/Garrison | X0-1V1 sent allied Knight (x1) 8920 | -6/Garrison | X0-1V1 activates XOMVISION 8937 | -6/Garrison | Garrison Relay disabled 8964 | -6/Garrison | Identified exit to Factory 8964 | -6/Garrison | X0-1V1 revealed exit location to -5/Factory 9082 | -6/Garrison | Triggered checkpoint 9104 | -6/Garrison | X0-1V1 revealed exit location to -5/Factory 9166 | -6/Garrison | Triggered checkpoint 9190 | -6/Garrison | P-60 Hacker assimilated allied Fighter 5a 9197 | -6/Garrison | Garrison Relay disabled 9284 | -6/Garrison | X0-1V1 mutated your Propulsion slot to Utility slot 9541 | -6/Garrison | Expanded RIF knowledge: Code Merge 9542 | -6/Garrison | Triggered checkpoint 9583 | -6/Garrison | Garrison Relay disabled 9676 | -6/Garrison | Garrison Relay disabled 9819 | -6/Garrison | Entered Factory 9819 | -5/Factory | Evolved 2 slots: Utility x2 9825 | -5/Factory | Found Powered Armor 9833 | -5/Factory | Found Powered Armor 9835 | -5/Factory | Found Powered Armor 9852 | -5/Factory | Found Powered Armor 9923 | -5/Factory | X0-1V1 sent you to a vault 9937 | -5/Factory | Found Quantum Capacitor 10015 | -5/Factory | X0-1V1 sent you into danger 10137 | -5/Factory | Discovered new exit (range 16) 10386 | -5/Factory | X0-1V1 activates XOMVISION 10526 | -5/Factory | Cargo convoy interrupted 10596 | -5/Factory | Identified exit to Factory 10596 | -5/Factory | X0-1V1 revealed exit location to -4/Factory 10719 | -5/Factory | First assault squad dispatched 10832 | -5/Factory | Identified exit to Extension 10832 | -5/Factory | X0-1V1 revealed exit location to -5/Extension 10835 | -5/Factory | Entered Extension 10892 | -5/Extension | Rescued a captive Derelict 10894 | -5/Extension | Rescued a captive Derelict 10944 | -5/Extension | Rescued A7 10979 | -5/Extension | Rescued a captive Derelict 11017 | -5/Extension | Rescued a captive Derelict 11332 | -5/Extension | Spotted B-75 Beast 11347 | -5/Extension | Spotted B-75 Beast 11350 | -5/Extension | Allies destroyed B-75 Beast 11361 | -5/Extension | Allies destroyed B-75 Beast 11380 | -5/Extension | X0-1V1 upgraded hostiles (x1) 11485 | -5/Extension | Disrupted transfer network 11515 | -5/Extension | Discovered exit to Factory (range 16) 11516 | -5/Extension | Discovered new exit (range 15) 11561 | -5/Extension | Entered Cetus 11561 | -5/Cetus | Accompanied by 9 allies (A7) 11566 | -5/Cetus | Acquired a Cetus Manufacturing Module code from A7 11570 | -5/Cetus | Spotted Cetus Guard 11571 | -5/Cetus | Spotted Cetus Guard 11573 | -5/Cetus | Spotted Cetus Guard 11573 | -5/Cetus | Spotted Cetus Guard 11576 | -5/Cetus | Destroyed Cetus Guard 11577 | -5/Cetus | Destroyed Cetus Guard 11577 | -5/Cetus | Destroyed Cetus Guard 11578 | -5/Cetus | Destroyed Cetus Guard 11607 | -5/Cetus | System corruption reached 10% 11670 | -5/Cetus | Escorted A7 to Cetus Mainframe 11676 | -5/Cetus | Started Cetus Manufacturing Module 11684 | -5/Cetus | Discovered new exit (range 15) 11701 | -5/Cetus | Manufactured an Enhanced Grunt 11708 | -5/Cetus | Spotted Cetus Guard 11708 | -5/Cetus | Spotted Cetus Guard 11712 | -5/Cetus | Spotted Cetus Guard 11712 | -5/Cetus | Spotted Cetus Guard 11718 | -5/Cetus | Destroyed Cetus Guard 11724 | -5/Cetus | Destroyed Cetus Guard 11726 | -5/Cetus | Manufactured an Enhanced Grunt 11726 | -5/Cetus | Destroyed Cetus Guard 11726 | -5/Cetus | Allies destroyed Cetus Guard 11731 | -5/Cetus | Discovered exit to Factory (range 15) 11751 | -5/Cetus | Manufactured an Enhanced Grunt 11754 | -5/Cetus | Lost 3 allies 11776 | -5/Cetus | Manufactured an Enhanced Grunt 11801 | -5/Cetus | Manufactured an Enhanced Grunt 11814 | -5/Cetus | Entered Archives 11814 | -5/Archives | Accompanied by 9 allies (A7) 11819 | -5/Archives | Received a hacking code to weaken MAIN.C 11858 | -5/Archives | Discovered new exit (range 16) 11868 | -5/Archives | Discovered exit to Factory (range 15) 12114 | -5/Archives | Identified exit to Hub_04(d) 12114 | -5/Archives | X0-1V1 revealed exit location to -5/Hub_04(d) 12206 | -5/Archives | X0-1V1 rewrote Warden 6a IFF filter 12248 | -5/Archives | Entered Hub_04(d) 12248 | -5/Hub_04(d) | Accompanied by 8 allies 12263 | -5/Hub_04(d) | Identified exit to Garrison 12297 | -5/Hub_04(d) | Discovered exit to Factory (range 27) 12352 | -5/Hub_04(d) | Discovered exit to Factory (range 44) 12383 | -5/Hub_04(d) | Spotted B-75 Beast 12401 | -5/Hub_04(d) | Allies destroyed B-75 Beast 12481 | -5/Hub_04(d) | Discovered exit to Factory (range 4) 12531 | -5/Hub_04(d) | X0-1V1 rewrote Sentinel 6b IFF filter 12546 | -5/Hub_04(d) | X0-1V1 enhanced Transport squad support 12549 | -5/Hub_04(d) | X0-1V1 announced a LAN party 12636 | -5/Hub_04(d) | X0-1V1 vaporized surrounding terrain (radius 17) 12656 | -5/Hub_04(d) | Identified exit to Garrison 12684 | -5/Hub_04(d) | Garrison activated, responded to threat 12688 | -5/Hub_04(d) | Network Hub disabled 12688 | -5/Hub_04(d) | Network Hub disabled 12720 | -5/Hub_04(d) | Lost 7 allies 12828 | -5/Hub_04(d) | Entered Garrison 12875 | -5/Garrison | Phase Generator disabled 12914 | -5/Garrison | Expanded RIF knowledge: Zone Cloak 12921 | -5/Garrison | Triggered checkpoint 12942 | -5/Garrison | Garrison Relay disabled 12967 | -5/Garrison | Discovered exit to Factory (range 46) 12967 | -5/Garrison | Discovered exit to Factory (range 54) 12967 | -5/Garrison | Discovered exit to Factory (range 50) 13020 | -5/Garrison | Spotted B-75 Beast 13071 | -5/Garrison | Allies destroyed B-75 Beast 13118 | -5/Garrison | Triggered checkpoint 13139 | -5/Garrison | Triggered checkpoint 13167 | -5/Garrison | Triggered checkpoint 13241 | -5/Garrison | Build established: Botlord-Construct 13292 | -5/Garrison | Triggered checkpoint 13396 | -5/Garrison | Triggered checkpoint 13438 | -5/Garrison | Garrison Relay disabled 13498 | -5/Garrison | Triggered checkpoint 13513 | -5/Garrison | Garrison Relay disabled 13612 | -5/Garrison | Entered Factory 13612 | -4/Factory | Accompanied by 2 allies 13612 | -4/Factory | Evolved 2 slots: Propulsion x1, Utility x1 13753 | -4/Factory | Discovered new exit (range 8) 13862 | -4/Factory | First assault squad dispatched 13912 | -4/Factory | Garrison activated, responded to threat 13922 | -4/Factory | P-70 Sage assimilated allied Veteran 7a 14082 | -4/Factory | X0-1V1 redirected Transport squads to designated parking area 14089 | -4/Factory | Watched by a mysterious "MATRIX" hacker 14273 | -4/Factory | Fabricated Adv. Heavy Siege Treads? 14285 | -4/Factory | P-70 Sage assimilated allied Sentinel 6f 14327 | -4/Factory | Lost 5 allies 14510 | -4/Factory | X0-1V1 turns hostiles against one another 14544 | -4/Factory | Lost 5 allies 14556 | -4/Factory | Discovered new exit (range 13) 14668 | -4/Factory | X0-1V1 announced a LAN party 14997 | -4/Factory | Identified exit to Garrison 14997 | -4/Factory | Entered Garrison 14997 | -4/Garrison | Accompanied by 3 allies 15075 | -4/Garrison | Build established: Construct 15082 | -4/Garrison | Discovered new exit (range 41) 15082 | -4/Garrison | Discovered new exit (range 65) 15082 | -4/Garrison | Discovered new exit (range 43) 15103 | -4/Garrison | Triggered checkpoint 15167 | -4/Garrison | Found embedded Infiltrators 15179 | -4/Garrison | Garrison Relay disabled 15206 | -4/Garrison | Garrison Relay disabled 15243 | -4/Garrison | X0-1V1 rewrote VJ-PYD(x) IFF filter 15339 | -4/Garrison | Triggered checkpoint 15375 | -4/Garrison | Lost 3 allies 15376 | -4/Garrison | Destroyed 9 combat bots 15427 | -4/Garrison | Spotted B-86 Titan 15436 | -4/Garrison | Garrison Relay disabled 15438 | -4/Garrison | Destroyed B-86 Titan 15468 | -4/Garrison | Expanded RIF knowledge: Threat Obfuscation 15513 | -4/Garrison | Build established: Botlord-Construct 15513 | -4/Garrison | Triggered checkpoint 15533 | -4/Garrison | X0-1V1 activates XOMVISION 15535 | -4/Garrison | Garrison Relay disabled 15551 | -4/Garrison | Phase Generator disabled 15560 | -4/Garrison | X0-1V1 rewrote Sentinel 7g IFF filter 15774 | -4/Garrison | System corruption reached 10% 15916 | -4/Garrison | Triggered checkpoint 15924 | -4/Garrison | H-XX Assembler disabled 16126 | -4/Garrison | Spotted B-86 Titan 16147 | -4/Garrison | Allies destroyed B-86 Titan 16412 | -4/Garrison | Garrison Relay disabled 16466 | -4/Garrison | Entered Research 16466 | -3/Research | Accompanied by 5 allies 16466 | -3/Research | Evolved 2 slots: Utility x1, Weapon x1 16666 | -3/Research | Revision forces began assault on 0b10 16703 | -3/Research | Met up with Revision 17++ 16765 | -3/Research | Identified exit to Research 16765 | -3/Research | X0-1V1 revealed exit location to -2/Research 16900 | -3/Research | X0-1V1 mutated your Propulsion slot to Utility slot 16957 | -3/Research | Identified exit to Armory 16957 | -3/Research | Identified exit to Quarantine 17004 | -3/Research | Discovered exit to Research (range 9) 17020 | -3/Research | Discovered exit to Research (range 11) 17140 | -3/Research | Found Prototype Processor 17140 | -3/Research | Identified Spectral Analyzer 17166 | -3/Research | Research terminal network offline 17225 | -3/Research | Spotted Executioner 17429 | -3/Research | X0-1V1 added 0b10 threat records associated with you (minor) 17542 | -3/Research | Spotted Striker 17559 | -3/Research | X0-1V1 mutated your Utility slot to Propulsion slot 17735 | -3/Research | X0-1V1 added 0b10 threat records associated with you (considerable) 17819 | -3/Research | Entered Quarantine 17819 | -3/Quarantine | Accompanied by 3 allies 17870 | -3/Quarantine | Garrison activated, responded to threat 17874 | -3/Quarantine | X0-1V1 sent allied Elite (x5) 17902 | -3/Quarantine | Identified exit to Garrison 17914 | -3/Quarantine | Lost 4 allies 17928 | -3/Quarantine | Found Prototype Device 17928 | -3/Quarantine | Identified System Purifier 17934 | -3/Quarantine | Found System Purifier 18023 | -3/Quarantine | Found Alien Artifact 18023 | -3/Quarantine | Identified Terrabomb 18023 | -3/Quarantine | Used Terrabomb 18097 | -3/Quarantine | Found Alien Impact Weapon 18098 | -3/Quarantine | X0-1V1 activates XOMVISION 18176 | -3/Quarantine | Found Alien Artifact 18209 | -3/Quarantine | Lost 3 allies 18220 | -3/Quarantine | Discovered exit to Research (range 6) 18310 | -3/Quarantine | Found Prototype Device 18310 | -3/Quarantine | Identified Exp. Thermal Shield 18550 | -3/Quarantine | System corruption reached 10% 18596 | -3/Quarantine | X0-1V1 added 0b10 threat records associated with you (major) 18602 | -3/Quarantine | X0-1V1 rewrote Warden 8b IFF filter 18609 | -3/Quarantine | Scanned by Researcher 18790 | -3/Quarantine | Cryocooling Duct disabled 18801 | -3/Quarantine | X0-1V1 upgraded ally (x2) 18805 | -3/Quarantine | Ambient heat levels rising (+20) 18805 | -3/Quarantine | Non-combat units ordered to evacuate 18863 | -3/Quarantine | X0-1V1 sent you to a vault 19064 | -3/Quarantine | X0-1V1 vaporized surrounding terrain (radius 16) 19069 | -3/Quarantine | First assault squad dispatched 19319 | -3/Quarantine | X0-1V1 mutated your Propulsion slot to Weapon slot 19354 | -3/Quarantine | Build established: Bothacker-Construct 19394 | -3/Quarantine | Entered Garrison 19443 | -3/Garrison | Identified Core Stripper 19500 | -3/Garrison | Triggered checkpoint 19537 | -3/Garrison | X0-1V1 activates XOMVISION 19542 | -3/Garrison | Garrison Relay disabled 19598 | -3/Garrison | Spotted B-86 Titan 19602 | -3/Garrison | Triggered checkpoint 19608 | -3/Garrison | Triggered checkpoint 19613 | -3/Garrison | Triggered checkpoint 19616 | -3/Garrison | Allies destroyed B-86 Titan 19623 | -3/Garrison | Triggered checkpoint 19645 | -3/Garrison | Discovered exit to Research (range 12) 19649 | -3/Garrison | Lost 3 allies 19649 | -3/Garrison | Expanded RIF knowledge: Coupler Efficiency 19657 | -3/Garrison | Triggered checkpoint 19672 | -3/Garrison | Garrison Relay disabled 19735 | -3/Garrison | Found Relay Coupler [Proto] 19736 | -3/Garrison | Found Relay Coupler [Proto] 19738 | -3/Garrison | Found Relay Coupler [Proto] 19740 | -3/Garrison | Found Relay Coupler [Proto] 19786 | -3/Garrison | Triggered checkpoint 19846 | -3/Garrison | Build established: Botlord-Construct 19853 | -3/Garrison | Triggered checkpoint 19885 | -3/Garrison | Garrison Relay disabled 19913 | -3/Garrison | Discovered exit to Research (range 9) 19915 | -3/Garrison | Spotted B-86 Titan 19941 | -3/Garrison | Allies destroyed B-86 Titan 19942 | -3/Garrison | Spotted B-86 Titan 19972 | -3/Garrison | Weapon slot count temporarily expanded by X0-1V1 (+1) 19977 | -3/Garrison | Destroyed B-86 Titan 20168 | -3/Garrison | X0-1V1 whisked you away to safety 20474 | -3/Garrison | Triggered checkpoint 20494 | -3/Garrison | Garrison Relay disabled 20529 | -3/Garrison | Garrison Relay disabled 20592 | -3/Garrison | Discovered exit to Research (range 5) 20607 | -3/Garrison | Entered Research 20607 | -2/Research | Accompanied by 1 ally 20607 | -2/Research | Evolved 2 slots: Propulsion x1, Utility x1 20617 | -2/Research | X0-1V1 sent you to a vault 20623 | -2/Research | Identified exit to Access 20623 | -2/Research | X0-1V1 revealed exit location to -1/Access 20656 | -2/Research | Spotted B-90 Cyclops 20662 | -2/Research | Allies destroyed B-90 Cyclops 20749 | -2/Research | Discovered exit to Access (range 7) 20759 | -2/Research | Found Exp. Target Analyzer 20838 | -2/Research | X0-1V1 activates XOMVISION 20857 | -2/Research | First assault squad dispatched 20909 | -2/Research | Build established: Botlord-Tank 21053 | -2/Research | Spotted B-90 Cyclops 21074 | -2/Research | Destroyed B-90 Cyclops 21126 | -2/Research | High security lockdown imminent 21141 | -2/Research | Self-destructed Last Messages --------------- 21111_ Arm. Scrap Engine consumes Biometal Leg. 21112_ Scanalyzer disabled. 21114_ Destroyed Adv. Remote Datajack. 21116_ Slug penetrates P-80 Master. 21116_ Destroyed Imp. Antigrav System. 21117_ Slug penetrates Earth. 21118_ Destroyed Gamma Rifle. 21118_ P-80 Master destroyed. 21120_ Acquired 4 matter. 21125_ Slug penetrates Scanalyzer. 21125_ P-80 Master hacks Terminator 9d, rebooting. 21126_ Destroyed Gamma Rifle. 21126_ P-80 Master destroyed. 21126_ ALERT: High security lockdown imminent, T-100. 21126_ X0-1V1 roars with laughter! 21127_ System corrupted: Energy discharge (-23). 21128_ Acquired 1 matter. 21131_ Terminator 9d reactivates. Map ----- +----------------------------------------------------+ | ?????????????????????????????????????????????????? | | ?????????????????????????????????????????????????? | | ?????????????????????????????????????????????????? | | ?????????????????????????????????????????????????? | | ?????????????????????????????????????????????????? | | ???????????????????????? ????????????????????????? | | ???????????????????????? ????????????????????????? | | ???????????????????????? ????????????????????????? | | ???????????????????????? ????????????????????????? | | ???????????????????????? ????????????????????????? | | ???????????????????????# #???????????????????????? | | ?????############??????# #???????????????????????? | | ???# ! #??????# #???????????#???????????? | | ???# #??????# #?????????? ###?????????? | | ???# """ """ #??????# #????????Y ??????????? | | ?### """ """ #??????# #???????? #???????????? | | ?#!#% """ """ #??????# #??????? #???????????? | | ####| """ """ #??????# #?????? #????????????? | | !+!=""" """ #??????# ####?? #????????????? | | !#! """ """ #?????## # #? +????????????? | | %+* """ """ ######## # ## ! #????????????? | | #! + u %= % #????????????? | | # ## = #????????????? | | %=# !!#= %%= % #????????????? | | #####+#########%| ! %[! *** #????????????? | | # #!!%% @!= ** ##???????????? | | *![ # #= ** ##???????????? | | [%! =# + u t ?????? | | ==% # # !h######################?????? | | # # !u=#??????????????????????????? | | ######?# #??????????????????????????? | | ######## #??????????????????????????? | | k u |#??????????????????????????? | | ##############=%k%#??????????????????????????? | | #####??###########h##!#??????????????????????????? | | ???????#= hhh# #??????????????????????????? | | ???????#* h# ??????????????????????????? | | ?# !!|%+== # ?????????????????????????? | | ?# #####! "S"" # ????????????????????????? | | ????# "[ "" ""% # ???????????????????????? | | ????#### ! / ??????k???????????????? | | ???????#* # ??????????????????????? | | ???????# """ """ + ku????????????????????? | | ???????# """ """ ####+### ????????????????????? | | ???????# """ """ #??????? ???????????????????? | | ?????????? #???????? ??????????????????? | | ?????????? #????????? ?????????????????? | | ??????????###########?????????? ?????????????????? | | ?????????????????????????????????????????????????? | | ?????????????????????????????????????????????????? | +----------------------------------------------------+ Best States ------------- Heat Dissipation 143 Energy Generation 84 Energy Capacity 2850 Matter Stores 1000 Matter Capacity 1000 Sight Range 22 Terrain Scan Density 10 Jamming Range 16 Base Temperature (-) 150 Armor Coverage 400 Resistance: TH 30 Resistance: EM 39 Weapon Cycling 25 Phase Shifting 15 Evasion (%) 65 Targeting Accuracy 20 Recoil Reduction 5 Offensive Hacking 14 Defensive Hacking 12 Relay Coupler Types 5 Relay Coupler Value 235 Item Schematics ----------------- Huge Storage Unit | -10/Materials | Hacked Imp. Cryofiber Web | -6/Factory | Hacked Enh. Hardcell Cannon | -4/Factory | Scanalyzed Proton Burst Cannon | -3/Quarantine | Archive Centrium Light Armor Plating | -3/Quarantine | Archive Adv. Energy Well | -3/Quarantine | Archive Helical Railgun | -3/Quarantine | Archive Cld. Field Propulsion Drive | -3/Quarantine | Archive Hvy. Dispersion Rifle | -3/Quarantine | Archive Electron Diverter | -3/Quarantine | Archive Cld. Gravmag System | -3/Quarantine | Archive Plasma Lance | -3/Quarantine | Archive Spectral Analyzer | -3/Quarantine | Archive Exp. Target Analyzer | -3/Quarantine | Archive Lgt. Antimatter Cannon | -3/Quarantine | Archive Exp. Energy Well | -3/Quarantine | Archive Hvy. Neutron Cannon | -3/Quarantine | Archive Cld. Antimatter Reactor | -3/Quarantine | Archive Exp. Field Recycling Unit | -3/Quarantine | Archive Adv. Myomer Leg | -3/Quarantine | Archive Enh. Coil Gun | -3/Quarantine | Archive Exp. Heat Sink | -3/Quarantine | Archive Robot Schematics ------------------ K-01 Serf | -3/Quarantine | Archive G-67 Veteran | -3/Quarantine | Archive R-10 Processor | -3/Quarantine | Archive M-30 Cleanser | -3/Quarantine | Archive X-82 Rainmaker | -3/Quarantine | Archive Fabricated ------------ Imp. Cryofiber Web | x2 | -6/Factory Adv. Heavy Siege Treads | x1 | -4/Factory | Preloaded Repaired ---------- Lgt. Treads | 12% | -10/Materials Lgt. Treads | 32% | -10/Materials Hvy. Assault Cannon | 52% | -9/Materials Studied --------- Hvy. Assault Rifle | -9/Materials | Hacked Wheel | -9/Materials | Hacked Lgt. Treads | -9/Materials | Hacked Particle Gun | -9/Materials | Hacked Rocket Launcher | -9/Materials | Hacked Imp. Remote Datajack | -4/Factory | Hacked Adv. Remote Datajack | -3/Research | Hacked Alien Tech Used ----------------- Terrabomb Core Stripper Achievements -------------- None Challenges ------------ None Game ------ Seed ReactionExpertClaws Manual? 0 Play Time 03:57:03 Cumulative 628.5 hours Start 2026.08.01 @ 22:20:51 End 2026.08.02 @ 21:36:08 Sessions 11 Manual Loads 0 Difficulty Rogue Special Mode None Game No. 563 Rogue 527 Adventurer 36 Explorer 0 Win Type - Total 8 Types 2/2/0/1/1/0/0/2/0/0 Lore% 84 Gallery% 74 Achievement% 67 Wizard Run 0 Options --------- Layout 2 ASCII 0 Keyboard 0 Movement Numpad Keybinds 0 Fullscreen 1 Font 48/Smallcaps Map View 50x44 Zoom Use 0% Tactical HUD 1 Map Filters NONE Filters NONE Steam 1 RUN: 68b2f1f1-3886-438d-b1d1-1015c4bf7d57